fUSD/lending_fUSD_20250105
["ID","MTS","AMOUNT","RATE_DAILY","PERIOD"]
[347751182,1736093482116,-648.44,0.00010684,2]
[347751183,1736093482126,-500.0,0.00010684,2]
[347751184,1736093482135,-675.6,0.00010684,2]
[347751185,1736093482144,-790.0,0.00010684,2]
[347751186,1736093482153,-747.11,0.00010684,2]
[347751187,1736093482163,-1312.45,0.00010684,2]
[347751188,1736093482173,-2431.88,0.00010684,2]
[347751189,1736093482182,-660.9,0.00010684,2]
[347751190,1736093482192,-741.89,0.00010684,2]
[347751191,1736093482202,-500.0,0.00010684,2]
[347751192,1736093482212,-998.2,0.00010684,2]
[347751193,1736093482220,-742.57,0.00010684,2]
[347751194,1736093482230,-950.19,0.00010684,2]
[347751195,1736093482240,-545.49,0.00010684,2]
[347751196,1736093482250,-500.0,0.00010684,2]
[347751197,1736093482260,-851.4,0.00010684,2]
[347751198,1736093482270,-1502.24,0.00010684,2]
[347751199,1736093482279,-1529.57,0.00010684,2]
[347751200,1736093482289,-775.67,0.00010684,2]
[347751201,1736093482299,-829.09,0.00010684,2]
[347751202,1736093482308,-643.9,0.00010684,2]
[347751203,1736093482318,-596.39,0.00010684,2]
[347751204,1736093482327,-1972.78,0.00010684,2]
[347751205,1736093482336,-2401.07,0.00010684,2]
[347751206,1736093482346,-376.057504,0.00010684,2]
[347751207,1736093482355,-500.0,0.00010684,2]
[347751208,1736093482365,-500.0,0.00010684,2]
[347751209,1736093482375,-7216.14,0.00010684,2]
[347751210,1736093482385,-4809.85,0.00010684,2]
[347751211,1736093482395,-500.0,0.00010684,2]
[347751212,1736093482404,-500.0,0.00010684,2]
[347751213,1736093482413,-1336.17,0.00010684,2]
[347751214,1736093482423,-664.2,0.00010684,2]
[347751215,1736093482433,-4510.33,0.00010684,2]
[347751216,1736093482444,-2680.26,0.00010684,2]
[347751217,1736093482453,-897.44,0.00010684,2]
[347751218,1736093482463,-402.062172,0.00010684,2]
[347751219,1736093482473,-376.812101,0.00010684,2]
[347751220,1736093482482,-514.62,0.00010684,2]
[347751221,1736093482494,-863.94,0.00010684,2]
[347751222,1736093482504,-500.0,0.00010684,2]
[347751223,1736093482513,-845.14,0.00010684,2]
[347751224,1736093482523,-2020.86,0.00010684,2]
[347751225,1736093482532,-1165.06,0.00010684,2]
[347751226,1736093482543,-898.28,0.00010684,2]
[347751227,1736093482553,-500.0,0.00010684,2]
[347751228,1736093482563,-682.97,0.00010684,2]
[347751229,1736093482573,-377.384262,0.00010684,2]
[347751230,1736093482583,-402.854924,0.00010684,2]
[347751231,1736093482593,-4822.3,0.00010684,2]
[347751232,1736093482602,-2567.67,0.00010684,2]
[347751233,1736093482612,-820.85,0.00010684,2]
[347751234,1736093482622,-730.9,0.00010684,2]
[347751235,1736093482632,-1978.57,0.00010684,2]
[347751236,1736093482641,-905.94,0.00010684,2]
[347751237,1736093482651,-500.0,0.00010684,2]
[347751238,1736093482661,-924.98,0.00010684,2]
[347751239,1736093482672,-730.86,0.00010684,2]
[347751240,1736093482682,-156.71267619,0.00010684,2]
[347751241,1736093482693,-500.0,0.00010684,2]
[347751242,1736093482703,-1891.01,0.00010684,2]
[347751243,1736093482714,-1979.73,0.00010684,2]
[347751244,1736093482724,-403.649579,0.00010684,2]
[347751245,1736093482734,-923.16,0.00010684,2]
[347751246,1736093482743,-377.632664,0.00010684,2]
[347751247,1736093482753,-1008.74,0.00010684,2]
[347751248,1736093482763,-5323.99,0.00010684,2]
[347751249,1736093482772,-634.71,0.00010684,2]
[347751250,1736093482783,-654.82,0.00010684,2]
[347751251,1736093482793,-910.23,0.00010684,2]
[347751252,1736093482802,-1030.31,0.00010684,2]
[347751253,1736093482813,-6129.68,0.00010684,2]
[347751254,1736093482822,-599.32,0.00010684,2]
[347751255,1736093482834,-404.206485,0.00010684,2]
[347751256,1736093482846,-3801.67,0.00010684,2]
[347751257,1736093482857,-500.0,0.00010684,2]
[347751258,1736093482867,-1038.71,0.00010684,2]
[347751259,1736093482876,-2105.78,0.00010684,2]
[347751260,1736093482886,-2739.97,0.00010684,2]
[347751261,1736093482895,-1877.63,0.00010684,2]
[347751262,1736093482905,-1306.48,0.00010684,2]
[347751263,1736093482916,-700.64,0.00010684,2]
[347751264,1736093482925,-377.522457,0.00010684,2]
[347751265,1736093482935,-1166.76,0.00010684,2]
[347751266,1736093482945,-1088.73,0.00010684,2]
[347751267,1736093482955,-4575.44,0.00010684,2]
[347751268,1736093482965,-172.09347775,0.00010684,2]
[347751269,1736093482974,-3359.4,0.00010684,2]
[347751270,1736093482984,-844.34,0.00010684,2]
[347751271,1736093482994,-500.0,0.00010684,2]
[347751272,1736093483003,-524.21,0.00010684,2]
[347751273,1736093483014,-1166.37,0.00010684,2]
[347751274,1736093483025,-502.97,0.00010684,2]
[347751275,1736093483034,-2102.36,0.00010684,2]
[347751276,1736093483045,-1697.98,0.00010684,2]
[347751277,1736093483055,-500.0,0.00010684,2]
[347751278,1736093483067,-1494.76,0.00010684,2]
[347751279,1736093483077,-377.105117,0.00010684,2]
[347751280,1736093483089,-404.362946,0.00010684,2]
[347751281,1736093483101,-2476.3,0.00010684,2]
[347751282,1736093483112,-707.61,0.00010684,2]
[347751283,1736093483121,-1004.07,0.00010684,2]
[347751284,1736093483131,-500.0,0.00010684,2]
[347751285,1736093483143,-2758.22,0.00010684,2]
[347751286,1736093483154,-540.89,0.00010684,2]
[347751287,1736093483165,-994.13,0.00010684,2]
[347751288,1736093483175,-936.98,0.00010684,2]
[347751289,1736093483184,-638.23,0.00010684,2]
[347751290,1736093483195,-500.0,0.00010684,2]
[347751291,1736093483205,-714.43,0.00010684,2]
[347751292,1736093483215,-376.50909,0.00010684,2]
[347751293,1736093483225,-404.088734,0.00010684,2]
[347751294,1736093483236,-4018.14,0.00010684,2]
[347751295,1736093483247,-579.85,0.00010684,2]
[347751296,1736093483257,-554.81,0.00010684,2]
[347751297,1736093483267,-768.81,0.00010684,2]
[347751298,1736093483277,-576.42,0.00010684,2]
[347751299,1736093483286,-1663.25,0.00010684,2]
[347751300,1736093483296,-500.0,0.00010684,2]
[347751301,1736093483305,-500.0,0.00010684,2]
[347751302,1736093483317,-375.919903,0.00010684,2]
[347751303,1736093483326,-403.4983,0.00010684,2]
[347751304,1736093483336,-870.76,0.00010684,2]
[347751305,1736093483346,-972.86,0.00010684,2]
[347751306,1736093483356,-3514.34,0.00010684,2]
[347751307,1736093483365,-500.0,0.00010684,2]
[347751308,1736093483375,-626.28,0.00010684,2]
[347751309,1736093483386,-1177.81,0.00010684,2]
[347751310,1736093483396,-1212.28,0.00010684,2]
[347751311,1736093483406,-928.76,0.00010684,2]
[347751312,1736093483415,-1032.98,0.00010684,2]
[347751313,1736093483425,-807.78,0.00010684,2]
[347751314,1736093483435,-569.16,0.00010684,2]
[347751315,1736093483445,-2723.22,0.00010684,2]
[347751316,1736093483455,-402.803781,0.00010684,2]
[347751317,1736093483465,-586.44,0.00010684,2]
[347751318,1736093483475,-647.44,0.00010684,2]
[347751319,1736093483485,-375.527974,0.00010684,2]
[347751320,1736093483499,-2820.24,0.00010684,2]
[347751321,1736093483511,-625.48,0.00010684,2]
[347751322,1736093483523,-1463.16,0.00010684,2]
[347751323,1736093483534,-2129.06,0.00010684,2]
[347751324,1736093483545,-758.75,0.00010684,2]
[347751325,1736093483555,-2335.63,0.00010684,2]
[347751326,1736093483565,-500.0,0.00010684,2]
[347751327,1736093483575,-7531.06,0.00010684,2]
[347751328,1736093483585,-931.19,0.00010684,2]
[347751329,1736093483594,-803.93,0.00010684,2]
[347751330,1736093483604,-1840.4,0.00010684,2]
[347751331,1736093483614,-917.79,0.00010684,2]
[347751332,1736093483624,-1119.32,0.00010684,2]
[347751333,1736093483634,-500.0,0.00010684,2]
[347751334,1736093483643,-402.22777,0.00010684,2]
[347751335,1736093483653,-706.11,0.00010684,2]
[347751336,1736093483663,-3520.61,0.00010684,2]
[347751337,1736093483674,-500.0,0.00010684,2]
[347751338,1736093483684,-557.28,0.00010684,2]
[347751339,1736093483695,-222094.5459391,0.000107,2]
[347751340,1736093483703,-150.0,0.00010707,2]
[347751341,1736093483713,-150.0,0.00010724,2]
[347751342,1736093483723,-429.58022011,0.00010762,2]
[347751343,1736093483733,-150.0,0.00010765,2]
[347751344,1736093483742,-150.0,0.00010774,2]
[347751345,1736093483949,-150.0,0.00010785,2]
[347751346,1736093483958,-150.0,0.00010817,2]
[347751347,1736093483967,-194.05,0.0001085,2]
[347751348,1736093483978,-150.0,0.00010884,2]
[347751349,1736093483987,-4105.40224837,0.000109,2]
[347751350,1736093483996,-500.0,0.00010958,2]
[347751351,1736093484006,-500.0,0.00010958,2]
[347751352,1736093484016,-500.0,0.00010958,2]
[347751353,1736093484026,-518.61,0.00010958,2]
[347751354,1736093484035,-500.0,0.00010958,2]
[347751355,1736093484044,-1944.31,0.00010958,2]
[347751356,1736093484054,-500.0,0.00010958,2]
[347751357,1736093484063,-500.0,0.00010958,2]
[347751358,1736093484072,-500.0,0.00010958,2]
[347751359,1736093484082,-513.01,0.00010958,2]
[347751360,1736093484091,-1116.95,0.00010958,2]
[347751361,1736093484101,-647.32,0.00010958,2]
[347751362,1736093484110,-483.42502987,0.00010958,2]
[347751363,1736093484119,-1247.07,0.00010958,2]
[347751364,1736093484128,-710.57,0.00010958,2]
[347751365,1736093484138,-785.01,0.00010958,2]
[347751366,1736093484148,-2074.96,0.00010958,2]
[347751367,1736093484158,-500.0,0.00010958,2]
[347751368,1736093484168,-1942.88,0.00010958,2]
[347751369,1736093484178,-500.0,0.00010958,2]
[347751370,1736093484187,-582.62,0.00010958,2]
[347751371,1736093484198,-500.0,0.00010958,2]
[347751372,1736093484208,-5066.49,0.00010958,2]
[347751373,1736093484217,-1196.95,0.00010958,2]
[347751374,1736093484226,-498.79468221,0.00010958,2]
[347751375,1736093484236,-500.0,0.00010958,2]
[347751376,1736093484245,-651.13,0.00010958,2]
[347751377,1736093484255,-1012.85,0.00010958,2]
[347751378,1736093484265,-500.0,0.00010958,2]
[347751379,1736093484275,-511.08,0.00010958,2]
[347751380,1736093484284,-766.4,0.00010958,2]
[347751381,1736093484293,-1917.18,0.00010958,2]
[347751382,1736093484302,-162.382441,0.00010958,2]
[347751383,1736093484312,-500.0,0.00010958,2]
[347751384,1736093484322,-751.14,0.00010958,2]
[347751385,1736093484331,-500.0,0.00010958,2]
[347751386,1736093484341,-952.56,0.00010958,2]
[347751387,1736093484350,-754.41,0.00010958,2]
[347751388,1736093484360,-886.39,0.00010958,2]
[347751389,1736093484369,-1737.28,0.00010958,2]
[347751390,1736093484379,-500.0,0.00010958,2]
[347751391,1736093484388,-500.0,0.00010958,2]
[347751392,1736093484398,-526.36,0.00010958,2]
[347751393,1736093484408,-737.15,0.00010958,2]
[347751394,1736093484418,-3524.74,0.00010958,2]
[347751395,1736093484428,-500.0,0.00010958,2]
[347751396,1736093484437,-500.0,0.00010958,2]
[347751397,1736093484447,-761.43,0.00010958,2]
[347751398,1736093484457,-500.0,0.00010958,2]
[347751399,1736093484467,-500.0,0.00010958,2]
[347751400,1736093484476,-642.49,0.00010958,2]
[347751401,1736093484486,-562.21,0.00010958,2]
[347751402,1736093484500,-735.44,0.00010958,2]
[347751403,1736093484509,-500.0,0.00010958,2]
[347751404,1736093484519,-500.0,0.00010958,2]
[347751405,1736093484529,-3187.24,0.00010958,2]
[347751406,1736093484538,-546.34,0.00010958,2]
[347751407,1736093484548,-520.15,0.00010958,2]
[347751408,1736093484557,-882.75,0.00010958,2]
[347751409,1736093484566,-649.07,0.00010958,2]
[347751410,1736093484578,-844.88,0.00010958,2]
[347751411,1736093484588,-774.09,0.00010958,2]
[347751412,1736093484598,-500.0,0.00010958,2]
[347751413,1736093484607,-2003.22,0.00010958,2]
[347751414,1736093484617,-528.73,0.00010958,2]
[347751415,1736093484627,-852.93,0.00010958,2]
[347751416,1736093484637,-500.0,0.00010958,2]
[347751417,1736093484647,-810.2,0.00010958,2]
[347751418,1736093484656,-829.01,0.00010958,2]
[347751419,1736093484666,-531.05,0.00010958,2]
[347751420,1736093484675,-682.3,0.00010958,2]
[347751421,1736093484684,-549.67,0.00010958,2]
[347751422,1736093484695,-2055.76,0.00010958,2]
[347751423,1736093484706,-543.01,0.00010958,2]
[347751424,1736093484715,-500.0,0.00010958,2]
[347751425,1736093484725,-500.0,0.00010958,2]
[347751426,1736093484735,-500.0,0.00010958,2]
[347751427,1736093484744,-2363.08,0.00010958,2]
[347751428,1736093484754,-715.52,0.00010958,2]
[347751429,1736093484763,-608.96,0.00010958,2]
[347751430,1736093484772,-500.0,0.00010958,2]
[347751431,1736093484782,-500.0,0.00010958,2]
[347751432,1736093484792,-500.0,0.00010958,2]
[347751433,1736093484801,-511.54,0.00010958,2]
[347751434,1736093484810,-816.37,0.00010958,2]
[347751435,1736093484819,-547.7,0.00010958,2]
[347751436,1736093484829,-710.61,0.00010958,2]
[347751437,1736093484839,-2036.65,0.00010958,2]
[347751438,1736093484848,-384.22505559,0.00010958,2]
[347751439,1736093484858,-560.43,0.00010958,2]
[347751440,1736093484867,-1095.6,0.00010958,2]
[347751441,1736093484877,-540.03,0.00010958,2]
[347751442,1736093484886,-587.66,0.00010958,2]
[347751443,1736093484896,-500.0,0.00010958,2]
[347751444,1736093484906,-946.46,0.00010958,2]
[347751445,1736093484918,-584.75,0.00010958,2]
[347751446,1736093484928,-500.0,0.00010958,2]
[347751447,1736093484937,-777.09,0.00010958,2]
[347751448,1736093484949,-500.0,0.00010958,2]
[347751449,1736093484958,-500.0,0.00010958,2]
[347751450,1736093484967,-548.22930449,0.00010958,2]
[347751451,1736093484976,-500.0,0.00010958,2]
[347751452,1736093484986,-660.74,0.00010958,2]
[347751453,1736093484995,-836.67,0.00010958,2]
[347751454,1736093485004,-3034.01,0.00010958,2]
[347751455,1736093485014,-645.35,0.00010958,2]
[347751456,1736093485024,-1046.1,0.00010958,2]
[347751457,1736093485035,-3701.46,0.00010958,2]
[347751458,1736093485045,-941.56,0.00010958,2]
[347751459,1736093485054,-500.0,0.00010958,2]
[347751460,1736093485063,-568.91,0.00010958,2]
[347751461,1736093485072,-833.84,0.00010958,2]
[347751462,1736093485082,-820.61,0.00010958,2]
[347751463,1736093485091,-582.64,0.00010958,2]
[347751464,1736093485100,-621.13,0.00010958,2]
[347751465,1736093485110,-501.63,0.00010958,2]
[347751466,1736093485119,-615.11,0.00010958,2]
[347751467,1736093485128,-649.76,0.00010958,2]
[347751468,1736093485138,-500.0,0.00010958,2]
[347751469,1736093485147,-868.56,0.00010958,2]
[347751470,1736093485156,-1688.62,0.00010958,2]
[347751471,1736093485165,-3762.06,0.00010958,2]
[347751472,1736093485174,-1145.74,0.00010958,2]
[347751473,1736093485183,-525.35,0.00010958,2]
[347751474,1736093485194,-574.53,0.00010958,2]
[347751475,1736093485203,-500.0,0.00010958,2]
[347751476,1736093485212,-702.61,0.00010958,2]
[347751477,1736093485222,-553.77,0.00010958,2]
[347751478,1736093485231,-898.96,0.00010958,2]
[347751479,1736093485241,-1387.22,0.00010958,2]
[347751480,1736093485251,-574.79,0.00010958,2]
[347751481,1736093485260,-549.17,0.00010958,2]
[347751482,1736093485269,-729.47,0.00010958,2]
[347751483,1736093485279,-910.32,0.00010958,2]
[347751484,1736093485288,-500.0,0.00010958,2]
[347751485,1736093485298,-500.0,0.00010958,2]
[347751486,1736093485307,-567.8,0.00010958,2]
[347751487,1736093485316,-527.29,0.00010958,2]
[347751488,1736093485325,-500.0,0.00010958,2]
[347751489,1736093485334,-970.62,0.00010958,2]
[347751490,1736093485344,-500.0,0.00010958,2]
[347751491,1736093485354,-676.38,0.00010958,2]
[347751492,1736093485363,-879.45,0.00010958,2]
[347751493,1736093485372,-504.21,0.00010958,2]
[347751494,1736093485382,-701.89,0.00010958,2]
[347751495,1736093485391,-919.5,0.00010958,2]
[347751496,1736093485401,-652.07,0.00010958,2]
[347751497,1736093485411,-500.0,0.00010958,2]
[347751498,1736093485420,-500.0,0.00010958,2]
[347751499,1736093485430,-899.28,0.00010958,2]
[347751500,1736093485440,-605.08,0.00010958,2]
[347751501,1736093485452,-878.43,0.00010958,2]
[347751502,1736093485462,-500.0,0.00010958,2]
[347751503,1736093485471,-676.02,0.00010958,2]
[347751504,1736093485481,-867.42,0.00010958,2]
[347751505,1736093485491,-1210.23,0.00010958,2]
[347751506,1736093485503,-767.55,0.00010958,2]
[347751507,1736093485512,-1086.36,0.00010958,2]
[347751508,1736093485521,-853.53,0.00010958,2]
[347751509,1736093485530,-500.0,0.00010958,2]
[347751510,1736093485541,-500.0,0.00010958,2]
[347751511,1736093485550,-705.93,0.00010958,2]
[347751512,1736093485559,-500.0,0.00010958,2]
[347751513,1736093485569,-500.0,0.00010958,2]
[347751514,1736093485578,-914.97,0.00010958,2]
[347751515,1736093485587,-201.46,0.00010958,2]
[347751516,1736093485596,-675.73,0.00010958,2]
[347751517,1736093485607,-672.42,0.00010958,2]
[347751518,1736093485616,-727.18,0.00010958,2]
[347751519,1736093485625,-500.0,0.00010958,2]
[347751520,1736093485635,-567.84,0.00010958,2]
[347751521,1736093485644,-552.49,0.00010958,2]
[347751522,1736093485653,-500.0,0.00010958,2]
[347751523,1736093485663,-764.16,0.00010958,2]
[347751524,1736093485672,-1325.59,0.00010958,2]
[347751525,1736093485682,-543.8,0.00010958,2]
[347751526,1736093485693,-681.31,0.00010958,2]
[347751527,1736093485702,-643.31,0.00010958,2]
[347751528,1736093485711,-1100.99,0.00010958,2]
[347751529,1736093485720,-554.91,0.00010958,2]
[347751530,1736093485729,-572.41,0.00010958,2]
[347751531,1736093485739,-500.0,0.00010958,2]
[347751532,1736093485749,-980.48,0.00010958,2]
[347751533,1736093485758,-578.15,0.00010958,2]
[347751534,1736093485767,-631.99,0.00010958,2]
[347751535,1736093485777,-1267.42,0.00010958,2]
[347751536,1736093485786,-680.55,0.00010958,2]
[347751537,1736093485795,-906.26,0.00010958,2]
[347751538,1736093485805,-3974.11,0.00010958,2]
[347751539,1736093485815,-500.0,0.00010958,2]
[347751540,1736093485824,-500.0,0.00010958,2]
[347751541,1736093485833,-1573.57,0.00010958,2]
[347751542,1736093485842,-809.64,0.00010958,2]
[347751543,1736093485852,-703.17,0.00010958,2]
[347751544,1736093485861,-500.0,0.00010958,2]
[347751545,1736093485870,-591.69,0.00010958,2]
[347751546,1736093485880,-641.71194776,0.00010958,2]
[347751547,1736093485889,-1135.97,0.00010958,2]
[347751548,1736093485899,-520.01,0.00010958,2]
[347751549,1736093485909,-1452.66,0.00010958,2]
[347751550,1736093485918,-1808.46,0.00010958,2]
[347751551,1736093485927,-602.76,0.00010958,2]
[347751552,1736093485937,-833.46,0.00010958,2]
[347751553,1736093485947,-618.53,0.00010958,2]
[347751554,1736093485957,-651.97,0.00010958,2]
[347751555,1736093485966,-911.74,0.00010958,2]
[347751556,1736093485976,-568.0,0.00010958,2]
[347751557,1736093485986,-1575.34,0.00010958,2]
[347751558,1736093485995,-1028.15,0.00010958,2]
[347751559,1736093486004,-721.89,0.00010958,2]
[347751560,1736093486013,-633.58,0.00010958,2]
[347751561,1736093486023,-500.0,0.00010958,2]
[347751562,1736093486032,-1378.57,0.00010958,2]
[347751563,1736093486042,-3107.24,0.00010958,2]
[347751564,1736093486051,-500.0,0.00010958,2]
[347751565,1736093486060,-675.6,0.00010958,2]
[347751566,1736093486069,-790.0,0.00010958,2]
[347751567,1736093486078,-747.11,0.00010958,2]
[347751568,1736093486088,-1312.45,0.00010958,2]
[347751569,1736093486098,-2431.88,0.00010958,2]
[347751570,1736093486107,-660.9,0.00010958,2]
[347751571,1736093486117,-741.89,0.00010958,2]
[347751572,1736093486126,-500.0,0.00010958,2]
[347751573,1736093486135,-998.2,0.00010958,2]
[347751574,1736093486145,-742.57,0.00010958,2]
[347751575,1736093486154,-950.19,0.00010958,2]
[347751576,1736093486163,-545.49,0.00010958,2]
[347751577,1736093486173,-500.0,0.00010958,2]
[347751578,1736093486183,-1502.24,0.00010958,2]
[347751579,1736093486193,-851.4,0.00010958,2]
[347751580,1736093486202,-1529.57,0.00010958,2]
[347751581,1736093486212,-775.67,0.00010958,2]
[347751582,1736093486221,-829.09,0.00010958,2]
[347751583,1736093486299,-643.9,0.00010958,2]
[347751584,1736093486309,-596.39,0.00010958,2]
[347751585,1736093486318,-2401.07,0.00010958,2]
[347751586,1736093486327,-1972.78,0.00010958,2]
[347751587,1736093486337,-500.0,0.00010958,2]
[347751588,1736093486347,-500.0,0.00010958,2]
[347751589,1736093486357,-7216.14,0.00010958,2]
[347751590,1736093486367,-4809.85,0.00010958,2]
[347751591,1736093486376,-483.87906374,0.00010958,2]
[347751592,1736093486385,-500.0,0.00010958,2]
[347751593,1736093486395,-1336.17,0.00010958,2]
[347751594,1736093486405,-664.2,0.00010958,2]
[347751595,1736093486414,-4510.33,0.00010958,2]
[347751596,1736093486423,-2680.26,0.00010958,2]
[347751597,1736093486433,-897.44,0.00010958,2]
[347751598,1736093486444,-514.62,0.00010958,2]
[347751599,1736093486454,-863.94,0.00010958,2]
[347751600,1736093486463,-845.14,0.00010958,2]
[347751601,1736093486472,-301.81,0.00010958,2]
[347751602,1736093486481,-2020.86,0.00010958,2]
[347751603,1736093486492,-1165.06,0.00010958,2]
[347751604,1736093486504,-898.28,0.00010958,2]
[347751605,1736093486513,-500.0,0.00010958,2]
[347751606,1736093486522,-682.97,0.00010958,2]
[347751607,1736093486532,-4822.3,0.00010958,2]
[347751608,1736093486542,-2567.67,0.00010958,2]
[347751609,1736093486552,-820.85,0.00010958,2]
[347751610,1736093486561,-730.9,0.00010958,2]
[347751611,1736093486571,-1978.57,0.00010958,2]
[347751612,1736093486581,-905.94,0.00010958,2]
[347751613,1736093486590,-500.0,0.00010958,2]
[347751614,1736093486599,-924.98,0.00010958,2]
[347751615,1736093486610,-730.86,0.00010958,2]
[347751616,1736093486619,-500.0,0.00010958,2]
[347751617,1736093486629,-1891.01,0.00010958,2]
[347751618,1736093486639,-1979.73,0.00010958,2]
[347751619,1736093486648,-923.16,0.00010958,2]
[347751620,1736093486658,-1008.74,0.00010958,2]
[347751621,1736093486668,-5323.99,0.00010958,2]
[347751622,1736093486678,-634.71,0.00010958,2]
[347751623,1736093486687,-654.82,0.00010958,2]
[347751624,1736093486697,-910.23,0.00010958,2]
[347751625,1736093486706,-1030.31,0.00010958,2]
[347751626,1736093486715,-6129.68,0.00010958,2]
[347751627,1736093486725,-599.32,0.00010958,2]
[347751628,1736093486735,-3801.67,0.00010958,2]
[347751629,1736093486744,-500.0,0.00010958,2]
[347751630,1736093486754,-1038.71,0.00010958,2]
[347751631,1736093486763,-2739.97,0.00010958,2]
[347751632,1736093486773,-2105.78,0.00010958,2]
[347751633,1736093486783,-1877.63,0.00010958,2]
[347751634,1736093486792,-1306.48,0.00010958,2]
[347751635,1736093486802,-700.64,0.00010958,2]
[347751636,1736093486811,-7500.0,0.00010958,2]
[347751637,1736093486821,-7500.0,0.00010958,2]
[347751638,1736093486830,-7500.0,0.00010958,2]
[347751639,1736093486839,-7500.0,0.00010958,2]
[347751640,1736093486849,-7500.0,0.00010958,2]
[347751641,1736093486858,-1166.76,0.00010958,2]
[347751642,1736093486868,-7500.0,0.00010958,2]
[347751643,1736093486879,-6770.97335316,0.00010958,2]
[347751644,1736093486888,-1088.73,0.00010958,2]
[347751645,1736093486900,-4575.44,0.00010958,2]
[347751646,1736093486909,-3359.4,0.00010958,2]
[347751647,1736093486919,-844.34,0.00010958,2]
[347751648,1736093486929,-500.0,0.00010958,2]
[347751649,1736093486939,-524.21,0.00010958,2]
[347751650,1736093486948,-1166.37,0.00010958,2]
[347751651,1736093486958,-502.97,0.00010958,2]
[347751652,1736093486966,-2102.36,0.00010958,2]
[347751653,1736093486976,-1697.98,0.00010958,2]
[347751654,1736093486985,-500.0,0.00010958,2]
[347751655,1736093486995,-1494.76,0.00010958,2]
[347751656,1736093487005,-2476.3,0.00010958,2]
[347751657,1736093487015,-707.61,0.00010958,2]
[347751658,1736093487024,-1004.07,0.00010958,2]
[347751659,1736093487033,-500.0,0.00010958,2]
[347751660,1736093487043,-2758.22,0.00010958,2]
[347751661,1736093487052,-540.89,0.00010958,2]
[347751662,1736093487061,-994.13,0.00010958,2]
[347751663,1736093487071,-936.98,0.00010958,2]
[347751664,1736093487080,-638.23,0.00010958,2]
[347751665,1736093487090,-500.0,0.00010958,2]
[347751666,1736093487099,-714.43,0.00010958,2]
[347751667,1736093487108,-4018.14,0.00010958,2]
[347751668,1736093487118,-579.85,0.00010958,2]
[347751669,1736093487127,-554.81,0.00010958,2]
[347751670,1736093487137,-768.81,0.00010958,2]
[347751671,1736093487147,-576.42,0.00010958,2]
[347751672,1736093487156,-1663.25,0.00010958,2]
[347751673,1736093487165,-208.75940069,0.00010958,2]
[347751674,1736093487175,-500.0,0.00010958,2]
[347751675,1736093487184,-972.86,0.00010958,2]
[347751676,1736093487195,-870.76,0.00010958,2]
[347751677,1736093487204,-3514.34,0.00010958,2]
[347751678,1736093487214,-500.0,0.00010958,2]
[347751679,1736093487224,-626.28,0.00010958,2]
[347751680,1736093487233,-1177.81,0.00010958,2]
[347751681,1736093487243,-1212.28,0.00010958,2]